Cogmind - Beta 16 @@@ ROGUE MODE // 2025.11.15 @ 20:21:49 Player: Red Box Result: Destroyed by exploding Fusion Modulator Performance ------------- Evolutions (0) 0 Regions Visited (1) 200 Robots Destroyed (16) 80 Value Destroyed (374) 374 Prototype IDs (0) 0 Alien Tech Used (0) 0 Bonus (0) 0 TOTAL SCORE: 654 Bonus ------- None Cogmind --------- Core Integrity 0/250 Matter 300/300 Energy 246/250 System Corruption 0% Temperature Cool (14) Movement Walking (190) Ox1 Location -10/Materials Parts ------- > --- POWER (1) -------- Ion Engine > --- PROPULSION (2) --- Aluminum Leg > --- UTILITY (2) ------ Heat Sink Small Storage Unit > --- WEAPON (2) ------- Particle Gun > --- INVENTORY (8) ---- Light Treads Light Treads Aluminum Leg Wheel Compact Wheel Improved Terrain Scanner Light Assault Rifle Peak State ------------ > --- POWER ------------ Ion Engine > --- PROPULSION ------- Aluminum Leg Aluminum Leg > --- UTILITY ---------- Small Storage Unit Improved Terrain Scanner > --- WEAPON ----------- EM Pulse Gun Particle Gun > --- INVENTORY -------- Light Treads Light Treads Wheel Compact Wheel Heat Sink Light Assault Rifle Light Assault Rifle [Rating: 10] Favorites ----------- Power Ion Engine Engine Ion Engine Propulsion Aluminum Leg Leg Aluminum Leg Utility Small Storage Unit Device Improved Terrain Scanner Storage Small Storage Unit Weapon Light Assault Rifle Energy Gun EM Pulse Gun Ballistic Gun Light Assault Rifle Build | -11 -10 ------- Run | Yrd Mat Slots Evolved . | . . Power . | . . Propulsion . | . . Utility . | . . Weapon . | . . Parts Attached 16 | 7 9 Power 3 | 1 2 Engine 3 | 1 2 Core . | . . Reactor . | . . Propulsion 5 | 2 3 Treads . | . . Leg 5 | 2 3 Wheel . | . . Hover . | . . Flight . | . . Utility 3 | 2 1 Device 2 | 1 1 Storage 1 | 1 . Processor . | . . Hackware . | . . Protection . | . . Artifact . | . . Weapon 5 | 2 3 Energy Gun 3 | . 3 Energy Cannon . | . . Ballistic Gun 2 | 2 . Ballistic Cannon . | . . Launcher . | . . Special Weapon . | . . Impact Weapon . | . . Slashing Weapon . | . . Piercing Weapon . | . . Special Melee Weapon . | . . Unidentified Prototypes . | . . Parts Lost 4 | . 4 Power . | . . Propulsion 1 | . 1 Utility . | . . Weapon 3 | . 3 Highest Loss Streak 2 | . 2 To Critical Strikes . | . . Average Backups 6 | 4 6 Power . | . . Propulsion 4 | 3 4 Utility . | . . Weapon 1 | . 1 Tool/Special . | . . Unused Backups 4 | . 4 Power . | . . Propulsion 4 | . 4 Utility . | . . Weapon . | . . Tool/Special . | . . Average Slot Usage (%) 99 | . 99 Engine 14 | . 14 Leg 28 | . 28 Device 14 | . 14 Storage 14 | . 14 Energy Gun 19 | . 19 Ballistic Gun 8 | . 8 Peak Build Rating 10 | 9 10 Average Rating 8 | 6 8 On Entrance 4 | . 9 Avg Prop Armor Cover (%) . | . . Naked Turns . | . . Heaviest Build 15 | 13 15 Greatest Support 20 | 20 20 Greatest Overweight (x) 2 | 2 . Average Overweight (x) . | . . Largest Inventory Capacity 8 | 8 8 Average Capacity 7 | 7 8 Most Carried 8 | 5 8 Average Carried 6 | 4 6 Final Capacity 8 | 8 8 Final Carried 7 | 5 7 Class Distribution -------------------- 59% | Mutant 40% | Scavenger-Mutant Dominant Class ---------------- Mutant | -10/Materials Resources | -11 -10 ----------- Run | Yrd Mat Matter Collected 396 | 298 98 Remotely . | . . Salvage Created 586 | 129 457 Parts 33 | 11 22 Haulers Intercepted . | . . Recyclers Shooed . | . . Parts Field Recycled . | . . Retrieved Matter . | . . Parts Self-Destructed . | . . Prevented . | . . Parts Restored . | . . Kills | -11 -10 ------- Run | Yrd Mat Combat Hostiles Destroyed 10 | . 10 Guns 9 | . 9 Classes Destroyed 5 | 2 3 Tunneler 3 | 3 . Recycler 1 | 1 . Watcher 2 | . 2 Swarmer 2 | . 2 Grunt 8 | . 8 Best Kill Streak 3 | 1 3 Combat Bots Only 3 | . 3 Max Kills in Single Turn 2 | 1 2 Gunslinging 1 | . 1 Exploded . | . . Melee . | . . Uniques/NPCs Destroyed . | . . Combat | -11 -10 -------- Run | Yrd Mat Hostile Shots Fired 87 | . 87 Missed 23 | . 23 Hits 64 | . 64 Projectile 64 | . 64 AOE 2 | . 2 Damage Taken 874 | . 874 Core 287 | . 287 Absorbed by Shields . | . . Core Remaining (%) 100 | 100 . Volleys Fired 50 | 14 36 Largest 2 | 2 2 Hottest 105 | 40 105 Shots Fired 100 | 28 72 Gun 100 | 28 72 Cannon . | . . Launcher . | . . Special . | . . Kinetic 41 | 28 13 Thermal 15 | . 15 Explosive . | . . Electromagnetic 44 | . 44 Robot Hit Streak 7 | 6 7 Robot Miss Streak 3 | 2 3 Penetration Max . | . . Secondary Targets 2 | . 2 Max Gunslinging Chain 1 | . 1 Shots Hit Robots 60 | 16 44 Core Hits 24 | 7 17 Critical Kills . | . . Critical Parts Destroyed . | . . Critical Strikes 1 | . 1 Corrupt 1 | . 1 Melee Attacks . | . . Impact . | . . Slashing . | . . Piercing . | . . Sneak Attacks . | . . Combat Hostiles . | . . Follow-up Attacks . | . . Damage Inflicted 774 | 119 655 Guns 726 | 119 607 Cannons . | . . Explosions 48 | . 48 Melee . | . . Ramming . | . . Kinetic 210 | 119 91 Thermal 153 | . 153 Explosive . | . . Electromagnetic 411 | . 411 Impact . | . . Slashing . | . . Piercing . | . . Highest Corruption . | . . Average Corruption . | . . Corruption Purged . | . . Corruption Blocked . | . . Overload Shots . | . . Overflow Damage . | . . Projectiles . | . . Explosions . | . . Melee . | . . Knockbacks . | . . Impact . | . . Kinetic . | . . Secondary . | . . Self-Inflicted Damage . | . . Shots . | . . Rammed . | . . Targets Rammed . | . . Kicked . | . . Crushed . | . . Highest Temperature 208 | . 208 Average Temperature 63 | . 63 Received Heat Transfer 315 | . 315 Siege Activations . | . . Martial Activations . | . . Shielding Activations . | . . Robots Disrupted . | . . Combat Hostiles . | . . Robots Corrupted 1 | . 1 Combat Hostiles 1 | . 1 Parts Fried 1 | . 1 Impact Corruptions . | . . Robots Melted . | . . Combat Hostiles . | . . Parts Melted . | . . Heat Transferred 309 | . 309 Parts Sabotaged . | . . Parts Stolen . | . . Parts Stripped . | . . Power Chain Reactions 1 | . 1 Alert | -11 -10 ------- Run | Yrd Mat Maximum Alert Level . | . . Low Security (%) 100 | 100 100 Level 1 . | . . Level 2 . | . . Level 3 . | . . Level 4 . | . . Level 5 . | . . High Security . | . . Max Security . | . . Peak Influence 127 | 5 127 Initial . | . . Average 46 | 1 56 Influence Increases 387 | 20 367 Destroy 0b10 Robot/C 200 | . 200 Destroy 0b10 Robot/NC 30 | 20 10 Destroy Leader 34 | . 34 Select Force Hacks 30 | . 30 Disable Machine 15 | . 15 Destroy Structure 3 | . 3 Lose Combat Pursuer 75 | . 75 Influence Decreases 342 | 20 322 Time Decay 302 | 20 282 Lost Part 40 | . 40 Squads Dispatched 2 | . 2 Investigation 2 | . 2 Extermination . | . . Reinforcement . | . . Assault . | . . Garrison . | . . Intercept . | . . Searches Triggered . | . . Construction Impeded . | . . Haulers Reinforced . | . . Active Scanning Responses . | . . Cargo Convoy Interrupts . | . . Stealth | -11 -10 --------- Run | Yrd Mat Distress Signals 1 | . 1 Communications Jammed . | . . Distress Signals . | . . Times Spotted 28 | . 28 Peak Tracking Total 5 | . 5 Tactical Retreats 5 | . 5 Traps | -11 -10 ------- Run | Yrd Mat Traps Triggered . | . . Indirectly . | . . Trap Hack Attempts . | . . Triggered . | . . Disarmed . | . . Reprogrammed . | . . Reused . | . . Traps Extracted . | . . Installed . | . . Triggered . | . . Machines | -11 -10 ---------- Run | Yrd Mat Machines Disabled 1 | . 1 Max in Single Turn 1 | . 1 Machines Repaired . | . . Machines Dismantled . | . . Machines Sabotaged . | . . Overloaded Fab Kills . | . . Hacking | -11 -10 --------- Run | Yrd Mat Machines Accessed 2 | . 2 Terminals 1 | . 1 Fabricators . | . . Repair Stations . | . . Recycling Units 1 | . 1 Scanalyzers . | . . Garrison Access . | . . Total Hacks 4 | . 4 Successful 2 | . 2 Failed 2 | . 2 Catastrophic . | . . Database Lockouts . | . . Manual 3 | . 3 Terminals 2 | . 2 Fabricators . | . . Repair Stations . | . . Recycling Units 2 | . 2 Scanalyzers . | . . Garrison Access . | . . Terminal Hacks . | . . Fabricator Hacks . | . . Repair Station Hacks . | . . Recycling Unit Hacks 1 | . 1 Retrieve Components 1 | . 1 Scanalyzer . | . . Garrison Access Hacks . | . . Unauthorized Hacks 1 | . 1 Terminals . | . . Fabricators . | . . Repair Stations . | . . Recycling Units 1 | . 1 Tunnel 1 | . 1 Scanalyzers . | . . Garrison Access . | . . Data Cores Recovered . | . . Used . | . . Hacking Detections 2 | . 2 Full Trace Events . | . . Feedback Events . | . . Feedback Blocked . | . . Robot Schematics Acquired . | . . Robots Built . | . . Authchips . | . . Time . | . . Total Robot Build Rating . | . . Part Schematics Acquired . | . . Parts Built . | . . Authchips . | . . Time . | . . Total Part Build Rating . | . . Part Studies Acquired . | . . Parts Repaired . | . . Time . | . . Parts Recycled . | . . Recycled Matter . | . . Retrieved Matter . | . . Retrieved Components . | . . Parts Scanalyzed . | . . Part Schematics Acquired . | . . Parts Damaged . | . . Bothacking | -11 -10 ------------ Run | Yrd Mat Used RIF Installer . | . . Robots Hacked . | . . Non-combat . | . . Combat . | . . Robot Hacks Applied . | . . Relay Couplers Released . | . . Fabnet Peak Effective % . | . . Robots Rewired . | . . Allies Hacked . | . . Hacks Repelled . | . . Allies | -11 -10 -------- Run | Yrd Mat Total Allies . | . . Largest Group . | . . Highest-Rated Group . | . . Highest-Rated Ally . | . . Total Orders . | . . Ally Attacks . | . . Total Damage . | . . Kills . | . . Allies Corrupted . | . . Allies Melted . | . . Intel | -11 -10 ------- Run | Yrd Mat Active Infowar (turns) 413 | 65 348 Terrain 413 | 65 348 Robot Analysis Total . | . . Derelict Logs Recovered . | . . Drone Launches . | . . Drone Recoveries . | . . Exploration | -11 -10 ------------- Run | Yrd Mat Turns Passed 802 | 139 663 Spaces Moved 389 | 78 311 Core 9 | 9 . Treads . | . . Legs 380 | 69 311 Wheels . | . . Hover . | . . Flight . | . . Fastest Speed 50 | 50 120 Average Speed 118 | 113 120 Slowest Speed 150 | 150 120 Overloaded Moves . | . . Propulsion Burnouts . | . . Robots Hopped . | . . Potential Cave-ins . | . . Cave-ins Triggered . | . . Exploration Rate (%) 19 | 4 34 Regions Visited 1 Branch Regions . Pre-discovered Areas 1 | . 1 Known Exits Taken . | . . Unknown Exits Taken 1 | 1 . Scrap Searched . | . . Spaces Dug . | . . Terrain Destroyed 2 | . 2 Melee . | . . Projectile . | . . AOE 2 | . 2 Terrain Rammed . | . . Walls Destroyed . | . . Machines Disabled . | . . Actions | -11 -10 --------- Run | Yrd Mat Total 634 | 103 531 Wait 164 | . 164 Move 388 | 77 311 Hop . | . . Pick Up 11 | 5 6 Fast Attach 7 | 7 . Attach 2 | . 2 Detach . | . . Swap 8 | . 8 Drop 4 | . 4 Fire 50 | 14 36 Melee . | . . Ram . | . . Kick . | . . Crush . | . . Escape Stasis . | . . Rewire . | . . Trap . | . . Miscellaneous . | . . Route ------- -11/Scrapyard -10/Materials (discovered 2 exits: [*Mat] / [*Min]) History --------- Turn | Location | Event 2 | -11/Scrapyard | Met Revision 17 7 | -11/Scrapyard | Discovered new exit (range 14) 140 | -11/Scrapyard | Entered Materials 312 | -10/Materials | Build established: Mutant 441 | -10/Materials | Discovered new exit (range 16) 640 | -10/Materials | Derelicts attacked the area 755 | -10/Materials | Discovered new exit (range 6) 762 | -10/Materials | Core integrity fell below 50% 775 | -10/Materials | Build established: Scavenger-Mutant 803 | -10/Materials | Destroyed by exploding Fusion Modulator Last Messages --------------- 00619_ R-06 Scavenger collects Heat Sink. 00640_ ALERT: Derelict incursion detected, rerouting patrols to target area. 00667_ K-01 Serf cleans the Processing Tank. 00726_ K-01 Serf destroyed. 00726_ Processing Tank disabled. 00736_ G-34 Mercenary destroyed. 00747_ Connecting with Terminal... 00755_ EXIT=FOUND 00765_ Terminal disabled. 00769_ G-47 Trooper destroyed. 00769_ S-10 Pest destroyed. 00793_ 2N-2YJ(R) misfires. 00793_ S-10 Pest destroyed. 00797_ R-06 Scavenger collects Lgt. Assault Rifle. 00803_ R-06 Scavenger collects Lgt. Ion Engine. 00803_ Aluminum Leg destroyed. 00803_ Fusion Modulator explodes. 00803_ F5-MB0(R) destroyed. 00803_ Lgt. Assault Rifle destroyed. Map ----- +----------------------------------------------------+ | ????????????????????????????###???#?########?????? | | ??????????????????################### ##????# | | ???????????????????# # # #??#??? | | ??????????#?????##?# """ # """ # #??#??? | | ???????????????????# "Y # """ # #?#???? | | ?????????????????#?# """ # " " # ???#??? | | ???????#???????#??## + = #? ???????? | | ????????????#??#???# " % = # ? #??##???? | | ????????????########"""" """""#"####+########## | | ????????????# %= | | ????????????# ^ % | | ????????????# % =% = % % | | ????????????#########"" ############# ## | | ?????????????????????## * ?#?#?######## ## | | ????????????????#??###" =% "####### ## ## | | ?????????????????#??### " + ## #? | | ?????????????????#?#??# "####### ## #? | | ????????????????#####?# "####### ## #? | | ??????????????### #""""""""# # *## ## | | ????????????? " %# # | | ????????????? T % # | | ????????????? % + " | | ??????????????### ###### #" !! #! | | ????????????????####### ; # [ !! # # | | ????????????????????##;;;;;;;#; % ####### | | ????????????????????# !@ [ ;;;###?#???# | | ????????????????????# !;;???#????? | | ????????????????????# %* !;?#??????? | | ????????????????????# # !#?##?????? | | ????????????????????# * #* !#????????? | | ????????????????????# R r% !#????#???? | | ????????????????????# [ # !##??#?????? | | ????????????????????#######;##### ####?????????? | | ???????????????????????????????? k""???????#???? | | ???????????????????????????????? "#??????#??? | | ???????????????????????????????# !"#?????????? | | ???????????????????????????????# < ""#?????????? | | ???????????????????????????????# |"#?????????? | | ???????????????????????????????# "#?????????? | | ???????????????????????????????# """#?????????? | | ???????????????????????????????## ####?????????? | | ????????????????????????????????? #????????????? | | ????????????????????????????????? ????????????? | | ????????????????????????????????? ????????????? | | ????????????????????????????????? ""????????????? | | ????????????????????????????????? "?????????????? | | ????????????????????????????????? ??????????????? | | ?????????????????????????????????????????????????? | | ?????????????????????????????????????????????????? | | ?????????????????????????????????????????????????? | +----------------------------------------------------+ Best States ------------- Heat Dissipation 35 Energy Generation 10 Energy Capacity 250 Matter Stores 300 Matter Capacity 300 Sight Range 16 Terrain Scan Range 16 Terrain Scan Density 10 Evasion (%) 55 Item Schematics ----------------- None Robot Schematics ------------------ None Fabricated ------------ Nothing Repaired ---------- Nothing Studied --------- None Alien Tech Used ----------------- None Achievements -------------- None Challenges ------------ None Game ------ Seed CentriumAssembledAutohacker Manual? 0 Play Time 00:10:09 Cumulative 690.5 hours Start 2025.11.15 @ 20:16:14 End 2025.11.15 @ 20:21:49 Sessions 1 Manual Loads 0 Difficulty Rogue Special Mode None Game No. 487 Rogue 487 Adventurer 0 Explorer 0 Win Type - Total 1 Types 1/0/0/0/0/0/0/0/0/0 Lore% 65 Gallery% 67 Achievement% 43 Wizard Run 0 Options --------- Layout 1 ASCII 0 Keyboard 0 Movement Mouse Keybinds 0 Fullscreen 1 Font 20/SmallcapsGlow Map View 54x42 Zoom Use 0% Tactical HUD 1 Map Filters NONE Filters NONE Steam 1 RUN: b056fd15-3462-4c7f-8ec9-880581645d84